bitfinex/quotes_BTCUSD_20220304
["timestamp","ask_amount","ask_price","bid_price","bid_amount"]
[1646360368473,0.8122486,41436.0,41435.0,0.56427356]
[1646360368715,0.49352241,41436.0,41435.0,0.56427356]
[1646360369113,0.79352241,41436.0,41435.0,0.56427356]
[1646360369312,0.81035834,41436.0,41435.0,0.56427356]
[1646360369512,0.51035834,41436.0,41435.0,0.56427356]
[1646360369712,0.81035834,41436.0,41435.0,0.56427356]
[1646360370712,0.81882992,41436.0,41435.0,0.56427356]
[1646360371114,0.51882992,41436.0,41435.0,0.56427356]
[1646360371320,0.40499399,41436.0,41435.0,0.56427356]
[1646360371519,0.19988624,41436.0,41435.0,0.82179699]
[1646360371716,0.19988624,41436.0,41435.0,0.56427356]
[1646360372768,0.19969734,41436.0,41435.0,0.56427356]
[1646360373367,0.20369734,41436.0,41435.0,0.56427356]
[1646360374667,0.19969734,41436.0,41435.0,0.56427356]
[1646360379423,0.20269734,41436.0,41435.0,0.56427356]
[1646360380567,0.19969734,41436.0,41435.0,0.56427356]
[1646360381372,0.20369734,41436.0,41435.0,0.56427356]
[1646360382669,0.19969734,41436.0,41435.0,0.56427356]
[1646360383470,0.20369734,41436.0,41435.0,0.56427356]
[1646360384724,0.19969734,41436.0,41435.0,0.56427356]
[1646360391224,0.19969734,41436.0,41435.0,1.03823046]
[1646360391417,0.20269734,41436.0,41435.0,1.03823046]
[1646360392819,0.20269734,41436.0,41435.0,0.76397968]
[1646360393019,0.19969734,41436.0,41435.0,0.76397968]
[1646360396667,0.19969734,41436.0,41435.0,0.76391326]
[1646360400531,0.005,41441.0,41436.0,1.32405]
[1646360400731,0.009102,41451.0,41438.0,0.02405]
[1646360400732,0.14543617,41446.0,41438.0,0.02405]
[1646360400930,0.14543617,41446.0,41439.0,0.60605423]
[1646360401227,0.14543617,41452.0,41439.0,0.23860123]
[1646360401426,0.4498,41454.0,41451.0,0.26936796]
[1646360401629,0.32460432,41456.0,41451.0,0.26936796]
[1646360401826,0.14543617,41456.0,41451.0,0.26936796]
[1646360402025,0.44543617,41460.0,41451.0,0.26936796]
[1646360402486,0.14543617,41460.0,41451.0,0.26936796]
[1646360402677,0.3,41460.0,41451.0,0.26936796]
[1646360402874,0.3527635,41461.0,41451.0,0.26936796]
[1646360402875,0.17359535,41461.0,41451.0,0.26936796]
[1646360403076,0.3,41460.0,41451.0,0.26936796]
[1646360403475,0.304,41460.0,41451.0,0.26936796]
[1646360403877,0.004,41460.0,41451.0,0.26936796]
[1646360404078,0.304,41460.0,41451.0,0.26936796]
[1646360404275,0.44815218,41456.0,41451.0,0.26936796]
[1646360404477,0.44815218,41459.0,41451.0,0.26936796]
[1646360404879,0.45215218,41460.0,41451.0,0.26936796]
[1646360405277,0.44815218,41460.0,41451.0,0.26936796]
[1646360405476,0.74815218,41460.0,41451.0,0.26936796]
[1646360405878,0.44815218,41459.0,41451.0,0.26936796]
[1646360406323,0.44815218,41459.0,41451.0,0.25264825]
[1646360406925,0.44815218,41459.0,41450.0,0.70699726]
[1646360407325,0.1,41458.0,41450.0,0.70699726]
[1646360407526,0.005,41459.0,41450.0,0.70699726]
[1646360407730,2.06327285,41454.0,41450.0,0.70699726]
[1646360407928,0.25597469,41459.0,41450.0,0.70699726]
[1646360408129,0.14543617,41453.0,41450.0,0.70699726]
[1646360408526,0.18416815,41459.0,41450.0,0.70699726]
[1646360408726,0.17916815,41459.0,41450.0,0.70699726]
[1646360409327,0.21595321,41462.0,41450.0,0.70699726]
[1646360409527,0.19363617,41462.0,41450.0,0.70699726]
[1646360409727,0.29363617,41462.0,41450.0,0.70699726]
[1646360409972,0.1482,41462.0,41450.0,0.70699726]
[1646360410378,0.0482,41462.0,41458.0,0.22525226]
[1646360410575,0.15853117,41464.0,41458.0,0.22525226]
[1646360410776,0.14543617,41465.0,41458.0,0.22525226]
[1646360410978,0.14543617,41467.0,41458.0,0.22525226]
[1646360411379,0.009663,41468.0,41462.0,0.16798384]
[1646360411578,0.005,41470.0,41462.0,0.16798384]
[1646360412879,0.14543617,41471.0,41462.0,0.16798384]
[1646360413817,0.35011214,41471.0,41462.0,0.16798384]
[1646360414920,0.35011214,41471.0,41462.0,0.66798384]
[1646360415120,0.35011214,41471.0,41462.0,0.5]
[1646360415527,0.1,41470.0,41462.0,0.5]
[1646360416921,0.1,41470.0,41458.0,0.67276714]
[1646360419173,0.11029053,41470.0,41458.0,0.5]
[1646360419376,0.84569053,41470.0,41458.0,0.5]
[1646360419575,0.9961267,41470.0,41458.0,0.5]
[1646360420374,0.2607267,41470.0,41458.0,0.5]
[1646360420576,0.25043617,41470.0,41458.0,0.5]
[1646360420779,0.1,41470.0,41458.0,0.5]
[1646360421427,0.106,41470.0,41458.0,0.5]
[1646360423025,0.109664,41470.0,41458.0,0.5]
[1646360423427,0.115664,41470.0,41458.0,0.5]
[1646360423626,0.163864,41470.0,41458.0,0.5]
[1646360424027,0.17459709,41470.0,41458.0,1.0]
[1646360424329,0.17459709,41470.0,41458.0,0.5]
[1646360424533,0.01493304,41468.0,41458.0,0.5]
[1646360424729,2.76017919,41461.0,41458.0,0.5]
[1646360424977,0.19363617,41460.0,41458.0,0.5]
[1646360426179,0.20634842,41460.0,41458.0,0.5]
[1646360426575,0.01561319,41459.0,41458.0,0.5]
[1646360426875,0.06381319,41459.0,41458.0,0.5]
[1646360427975,0.0482,41459.0,41458.0,0.5]
[1646360428920,0.0482,41459.0,41458.0,0.49991832]
[1646360429520,0.0542,41459.0,41458.0,0.49991832]
[1646360430722,0.0482,41459.0,41458.0,0.49991832]
[1646360430921,0.05967158,41459.0,41458.0,0.49991832]
[1646360431123,0.0482,41459.0,41458.0,0.49991832]
[1646360431622,0.0532,41459.0,41458.0,0.49991832]
[1646360432572,0.06467158,41459.0,41458.0,0.49991832]
[1646360432772,0.0482,41459.0,41458.0,0.49991832]
[1646360432974,0.20661768,41459.0,41458.0,0.49991832]
[1646360433377,0.30661768,41459.0,41458.0,0.49991832]
[1646360433572,0.1522,41459.0,41458.0,0.49991832]
[1646360434174,0.16367158,41459.0,41458.0,0.49991832]
[1646360434774,0.15967158,41459.0,41458.0,0.49991832]
[1646360435576,0.16367158,41459.0,41458.0,0.49991832]
[1646360436825,0.15967158,41459.0,41458.0,0.49991832]
[1646360437627,0.16367158,41459.0,41458.0,0.49991832]
[1646360438828,0.15967158,41459.0,41458.0,0.49991832]
[1646360439631,0.16367158,41459.0,41458.0,0.49991832]
[1646360440870,0.15967158,41459.0,41458.0,0.49991832]
[1646360441075,0.06303436,41453.0,41450.0,0.5]
[1646360441275,0.0482,41452.0,41450.0,0.5]
[1646360441474,0.7354,41451.0,41450.0,0.5]
[1646360441673,0.7836,41451.0,41450.0,0.5]
[1646360441876,0.8836,41451.0,41450.0,0.5]
[1646360442073,0.1482,41451.0,41450.0,0.5]
[1646360442672,0.8836,41451.0,41450.0,0.5]
[1646360442873,0.2982,41451.0,41450.0,0.5]
[1646360443071,0.45510775,41451.0,41450.0,0.5]
[1646360443472,0.60034929,41451.0,41450.0,0.5]
[1646360443734,1.33974929,41451.0,41450.0,0.5]
[1646360443939,1.04450775,41451.0,41450.0,0.5]
[1646360444734,1.04021798,41451.0,41450.0,0.5]
[1646360444934,1.04988598,41451.0,41450.0,0.5]
[1646360445234,1.04021798,41451.0,41450.0,0.47179215]
[1646360445636,1.077039,41451.0,41450.0,0.47179215]
[1646360446635,1.377039,41451.0,41450.0,0.47179215]
[1646360446837,1.527039,41451.0,41450.0,0.47179215]
[1646360447239,0.791639,41451.0,41450.0,0.47179215]
[1646360447477,0.641639,41451.0,41450.0,0.47179215]
[1646360447878,0.49620283,41451.0,41450.0,0.47179215]
[1646360448382,1.23160283,41451.0,41450.0,0.47179215]
[1646360448779,1.4513561,41451.0,41450.0,0.47179215]
[1646360449179,1.4416891,41451.0,41450.0,0.47179215]
[1646360449581,1.4466891,41451.0,41450.0,0.47179215]
[1646360449884,1.382039,41451.0,41450.0,0.47179215]
[1646360450381,1.532039,41451.0,41450.0,0.47179215]
[1646360450581,1.38660283,41451.0,41450.0,0.47179215]
[1646360450784,1.03537925,41451.0,41450.0,0.47179215]
[1646360451085,0.59997925,41451.0,41450.0,0.47179215]
[1646360451329,0.30385258,41451.0,41450.0,0.47179215]
[1646360451730,0.20007616,41451.0,41450.0,0.47179215]
[1646360452734,0.20974316,41451.0,41450.0,0.47179215]
[1646360452932,0.10974316,41451.0,41450.0,0.47179215]
[1646360453533,0.10007616,41451.0,41450.0,0.47179215]
[1646360455778,0.20007616,41451.0,41450.0,0.47179215]
[1646360455981,0.292381,41451.0,41450.0,0.47179215]
[1646360456379,0.18860458,41451.0,41450.0,0.47179215]
[1646360456779,0.19827158,41451.0,41450.0,0.47179215]
[1646360456980,0.08860458,41451.0,41450.0,0.47179215]
[1646360457281,0.05178356,41451.0,41450.0,0.47179215]
[1646360457482,0.04791023,41451.0,41450.0,0.47179215]
[1646360457685,0.05191023,41451.0,41450.0,0.47179215]
[1646360458930,0.04791023,41451.0,41450.0,0.47179215]
[1646360459137,0.35938181,41451.0,41450.0,0.47179215]
[1646360459332,0.45938181,41451.0,41450.0,0.47179215]
[1646360459531,0.46438181,41451.0,41450.0,0.47179215]
[1646360460532,0.61438181,41451.0,41450.0,0.47179215]
[1646360460731,0.62404881,41451.0,41450.0,0.47179215]
[1646360460933,0.60938181,41451.0,41450.0,0.47179215]
[1646360461134,0.45938181,41451.0,41450.0,0.47179215]
[1646360461334,0.49552612,41451.0,41450.0,0.47179215]
[1646360461733,0.49952612,41451.0,41450.0,0.47179215]
[1646360462136,0.64952612,41451.0,41450.0,0.47179215]
[1646360462334,0.8113963,41451.0,41450.0,0.47179215]
[1646360462574,0.64952612,41451.0,41450.0,0.47179215]
[1646360462776,0.49552612,41451.0,41450.0,0.47179215]
[1646360462978,0.64552612,41451.0,41450.0,0.47179215]
[1646360463176,1.75464612,41451.0,41450.0,0.47179215]
[1646360463376,1.85842254,41451.0,41450.0,0.40290336]
[1646360463577,2.46839587,41451.0,41450.0,0.04044118]
[1646360463775,0.06369452,41446.0,41436.0,0.14765]
[1646360463978,0.3482,41445.0,41436.0,0.37818989]
[1646360464175,0.72192,41445.0,41436.0,0.14765]
[1646360464376,0.1,41444.0,41436.0,0.14765]
[1646360464581,0.0482,41443.0,41436.0,0.14765]
[1646360464876,0.0482,41443.0,41436.0,0.01205]
[1646360465677,0.0522,41443.0,41436.0,0.01205]
[1646360465877,0.05209771,41443.0,41436.0,0.01205]
[1646360466924,0.04809771,41443.0,41436.0,0.01205]
[1646360467725,0.05209771,41443.0,41436.0,0.01205]
[1646360468130,0.01552095,41442.0,41436.0,0.01205]
[1646360468425,0.0482,41441.0,41436.0,0.01205]
[1646360469625,0.0522,41441.0,41436.0,0.01205]
[1646360470880,0.0482,41441.0,41436.0,0.18034087]
[1646360473079,0.0482,41441.0,41436.0,0.01205]
[1646360473726,0.0522,41441.0,41436.0,0.01205]
[1646360475024,0.0482,41441.0,41436.0,0.01205]
[1646360482722,2.74549263,41437.0,41436.0,0.01205]
[1646360482923,0.0482,41441.0,41436.0,0.01205]
[1646360484423,0.0476372,41441.0,41436.0,0.01205]
[1646360485676,0.1,41445.0,41436.0,0.01205]
[1646360486076,0.013668,41446.0,41442.0,0.26588893]
[1646360487078,0.009668,41446.0,41442.0,0.26588893]
[1646360488277,0.009668,41446.0,41436.0,0.15595]
[1646360489727,0.009668,41446.0,41441.0,0.26487973]
[1646360490428,0.009668,41446.0,41436.0,0.15695]
[1646360491028,0.009668,41446.0,41436.0,0.15595]
[1646360491631,0.009668,41446.0,41437.0,0.2265463]
[1646360493779,0.72692,41446.0,41436.0,0.1319]
[1646360494179,0.1,41445.0,41436.0,0.1319]
[1646360494374,0.0482,41444.0,41436.0,0.1319]
[1646360494774,0.0482,41444.0,41436.0,0.26145635]
[1646360495777,0.2049718,41442.0,41435.0,0.56420714]
[1646360496225,0.0482,41441.0,41435.0,0.56420714]
[1646360496630,0.37372,41440.0,41435.0,0.56420714]
[1646360496931,0.16408068,41439.0,41435.0,0.56420714]
[1646360497527,0.16182112,41439.0,41435.0,0.56420714]
[1646360497727,0.16682112,41439.0,41435.0,0.56420714]
[1646360498129,0.01438379,41438.0,41435.0,0.56420714]
[1646360498333,0.0482,41437.0,41435.0,0.56420714]
[1646360498531,0.0482,41436.0,41435.0,0.56420714]
[1646360501673,0.04762138,41436.0,41435.0,0.56420714]
[1646360503726,0.05362138,41436.0,41435.0,0.56420714]
[1646360505129,0.04762138,41436.0,41435.0,0.56420714]
[1646360505629,0.20381091,41440.0,41435.0,0.56420714]
[1646360506630,0.10381091,41440.0,41435.0,0.56420714]
[1646360507234,0.44817382,41444.0,41435.0,0.56420714]
[1646360507471,0.69098473,41445.0,41435.0,0.56420714]
[1646360507671,0.2056002,41444.0,41435.0,0.56420714]
[1646360507871,0.44817382,41444.0,41435.0,0.56420714]
[1646360508072,0.3,41443.0,41435.0,0.56420714]
[1646360508272,0.4,41443.0,41435.0,0.56420714]
[1646360508876,0.4,41443.0,41439.0,0.27544812]
[1646360509073,0.1,41443.0,41439.0,0.27544812]
[1646360509272,0.20381091,41444.0,41439.0,0.27544812]
[1646360509473,0.1,41444.0,41435.0,0.56420714]
[1646360510272,0.37439613,41445.0,41435.0,0.56420714]
[1646360510474,0.37439613,41445.0,41439.0,0.22006812]
[1646360510676,0.20381091,41445.0,41435.0,0.56420714]
[1646360511075,0.1,41445.0,41435.0,0.56420714]
[1646360512929,0.17174085,41444.0,41435.0,0.56420714]
[1646360513327,0.27174085,41444.0,41439.0,0.22084526]
[1646360514331,0.17174085,41444.0,41439.0,0.22084526]
[1646360516575,0.1,41445.0,41439.0,0.22084526]
[1646360516777,0.1482,41445.0,41439.0,0.22084526]
[1646360517177,0.0482,41445.0,41439.0,0.22084526]
[1646360517380,0.1,41448.0,41439.0,0.22084526]
[1646360517582,0.1,41448.0,41439.0,0.24489526]
[1646360517777,0.014104,41450.0,41447.0,0.2431353]
[1646360517979,0.005,41450.0,41447.0,0.2431353]
[1646360519043,0.05,41455.0,41447.0,0.2431353]
[1646360519243,0.15396503,41460.0,41453.0,0.19439244]
[1646360519449,0.01293294,41460.0,41453.0,0.19439244]
[1646360519842,0.01593294,41460.0,41453.0,0.19439244]
[1646360520042,0.003,41460.0,41456.0,0.27247472]
[1646360521043,0.10381091,41462.0,41456.0,0.27247472]
[1646360521243,0.10381091,41465.0,41456.0,0.27247472]
[1646360521746,0.13260077,41466.0,41456.0,0.27247472]
[1646360522043,0.005,41467.0,41456.0,0.27247472]
[1646360522242,0.005,41467.0,41464.0,0.27707152]
[1646360522243,0.18549743,41467.0,41464.0,0.27707152]
[1646360522474,0.18549743,41467.0,41455.0,0.02405]
[1646360522675,0.48549743,41467.0,41455.0,0.02405]
[1646360523075,0.54201192,41467.0,41454.0,0.1301]
[1646360523279,0.90741763,41467.0,41454.0,0.1301]
[1646360523477,0.90741763,41467.0,41458.0,0.28288847]
[1646360523478,0.01347148,41466.0,41458.0,0.28288847]
[1646360523677,2.00410997,41465.0,41458.0,0.28288847]
[1646360524277,0.10381091,41464.0,41458.0,0.28288847]
[1646360524477,0.10381091,41464.0,41454.0,0.13009622]
[1646360524878,0.3,41465.0,41454.0,0.13009622]
[1646360525483,0.55202927,41465.0,41454.0,0.36094563]
[1646360525778,0.55702927,41465.0,41454.0,0.13009622]
[1646360525978,0.305,41465.0,41454.0,0.13009622]
[1646360526426,0.01535267,41464.0,41454.0,0.13009622]
[1646360526826,0.21900724,41457.0,41454.0,0.13009622]
[1646360527025,0.22972344,41462.0,41454.0,0.13009622]
[1646360527225,0.1,41463.0,41451.0,0.23070452]
[1646360527424,0.3,41462.0,41451.0,0.23070452]
[1646360527825,0.305,41462.0,41451.0,0.23070452]
[1646360528028,0.21245539,41459.0,41451.0,0.23070452]
[1646360528428,0.1,41461.0,41451.0,0.23070452]
[1646360529230,0.4,41462.0,41451.0,0.23070452]
[1646360529430,0.16321878,41460.0,41451.0,0.23070452]
[1646360530680,0.46321878,41460.0,41451.0,0.23070452]
[1646360531075,0.47637627,41460.0,41451.0,0.23070452]
[1646360531274,0.46321878,41460.0,41451.0,0.23070452]
[1646360531874,0.46321878,41460.0,41449.0,0.1323]
[1646360533929,0.46321878,41460.0,41453.0,0.23650926]
[1646360535936,0.46821878,41460.0,41453.0,0.23650926]
[1646360537132,0.16321878,41460.0,41453.0,0.23650926]
[1646360537774,0.16921878,41460.0,41453.0,0.23650926]
[1646360538580,0.16921878,41460.0,41449.0,0.1323]
[1646360538781,0.3482,41459.0,41449.0,0.1323]
[1646360539178,0.1,41458.0,41449.0,0.1323]
[1646360539376,0.0482,41457.0,41449.0,0.1323]
[1646360539577,0.19126158,41451.0,41449.0,0.1323]
[1646360539779,0.19126158,41451.0,41443.0,0.18723912]
[1646360540381,0.19126158,41451.0,41439.0,0.3]
[1646360540980,0.19126158,41451.0,41438.0,0.1225]
[1646360541239,0.0482,41450.0,41438.0,0.1225]
[1646360541454,0.0482,41450.0,41438.0,0.33964257]
[1646360541929,0.0522,41450.0,41438.0,0.33964257]
[1646360543029,0.0482,41450.0,41438.0,0.33964257]
[1646360543232,0.0482,41450.0,41442.0,0.20420137]
[1646360543835,0.0532,41450.0,41442.0,0.20420137]
[1646360545177,0.20979876,41449.0,41442.0,0.20420137]
[1646360545378,0.0482,41448.0,41442.0,0.20420137]
[1646360545779,0.0482,41448.0,41446.0,0.2097359]
[1646360546279,0.0482,41448.0,41446.0,0.20963232]
[1646360548183,0.022767,41453.0,41446.0,0.20963232]
[1646360548386,0.013666,41453.0,41446.0,0.20963232]
[1646360549035,0.004,41453.0,41452.0,0.24759283]
[1646360549232,0.0482,41459.0,41446.0,0.20963232]
[1646360549434,0.20916172,41454.0,41446.0,0.20963232]
[1646360550435,0.20916172,41454.0,41449.0,0.23381463]
[1646360550636,0.20916172,41454.0,41446.0,0.20963232]
[1646360551540,0.0482,41453.0,41446.0,0.20963232]
[1646360553177,0.0482,41453.0,41444.0,0.1311]
[1646360553975,0.0532,41453.0,41444.0,0.1311]
[1646360555176,0.0482,41453.0,41444.0,0.1311]
[1646360555378,0.0482,41453.0,41433.0,0.15]
[1646360555379,0.07312434,41451.0,41433.0,0.15]
[1646360555582,0.15974638,41443.0,41435.0,0.69430714]
[1646360555780,0.07225,41450.0,41435.0,0.69430714]
[1646360555781,0.0482,41442.0,41435.0,0.69430714]
[1646360555980,0.0482,41441.0,41435.0,0.56420714]
[1646360556227,0.25353473,41449.0,41435.0,0.56420714]
[1646360556228,0.0482,41440.0,41435.0,0.56420714]
[1646360556426,0.0482,41440.0,41435.0,0.7247223]
[1646360556626,0.0482,41440.0,41435.0,0.56420714]
[1646360557926,0.0532,41440.0,41435.0,0.56420714]
[1646360559127,0.0482,41440.0,41435.0,0.56420714]
[1646360559977,0.0542,41440.0,41436.0,0.2693531]
[1646360560179,0.0542,41440.0,41435.0,0.56420714]
[1646360561179,0.0482,41440.0,41435.0,0.56420714]
[1646360561883,0.0542,41440.0,41435.0,0.56420714]
[1646360562579,0.0542,41440.0,41436.0,0.26738008]
[1646360563180,0.0542,41440.0,41435.0,0.56420714]
[1646360563181,0.3482,41440.0,41435.0,0.56420714]
[1646360563731,0.1,41439.0,41435.0,0.56420714]
[1646360563931,0.0482,41438.0,41435.0,0.56420714]
[1646360565935,0.0532,41438.0,41435.0,0.56420714]
[1646360567139,0.0532,41438.0,41436.0,0.26451677]
[1646360567336,0.0482,41438.0,41436.0,0.26451677]
[1646360569481,0.04811649,41438.0,41435.0,0.56420714]
[1646360570481,0.04811649,41438.0,41435.0,0.84337371]
[1646360570680,0.04811649,41438.0,41435.0,0.56420714]
[1646360571749,1.86875203,41437.0,41435.0,0.7981502]
[1646360571948,1.86875203,41437.0,41435.0,0.56420714]
[1646360571949,0.0482,41437.0,41435.0,0.56420714]
[1646360572150,0.1,41436.0,41435.0,0.56420714]
[1646360572354,0.0482,41437.0,41435.0,0.56420714]
[1646360573654,0.01315079,41436.0,41435.0,0.56420714]
[1646360582337,0.02282079,41436.0,41435.0,0.56420714]
[1646360582599,0.01315079,41436.0,41435.0,0.56420714]
[1646360583795,0.06135079,41436.0,41435.0,0.56420714]
[1646360583996,0.06535079,41436.0,41435.0,0.56420714]
[1646360584195,0.0522,41436.0,41435.0,0.56420714]
[1646360584596,1.3,41435.0,41432.0,0.01145]
[1646360584796,0.95266176,41434.0,41432.0,0.01145]
[1646360584995,1.21585061,41434.0,41432.0,0.01145]
[1646360585199,2.12222255,41434.0,41432.0,5e-05]
[1646360585394,1.23017288,41433.0,41432.0,5e-05]
[1646360585598,0.7354,41431.0,41422.0,0.001]
[1646360585795,0.15,41429.0,41422.0,0.001]
[1646360585996,0.0482,41428.0,41422.0,0.001]
[1646360586435,1.48435947,41428.0,41422.0,0.001]
[1646360586639,1.62846176,41428.0,41422.0,0.001]
[1646360586836,0.70589472,41428.0,41422.0,0.001]
[1646360587236,0.61524259,41428.0,41422.0,0.001]
[1646360587637,0.46524259,41428.0,41422.0,0.001]
[1646360587841,0.56904551,41428.0,41422.0,0.001]
[1646360588237,0.46524259,41428.0,41422.0,0.001]
[1646360588839,0.47671417,41428.0,41422.0,0.001]
[1646360590181,0.48638717,41428.0,41422.0,0.001]
[1646360590388,0.47671417,41428.0,41422.0,0.001]
[1646360591388,0.47671417,41428.0,41423.0,0.25527153]
[1646360591581,0.47282237,41428.0,41422.0,0.001]
[1646360592182,0.57860013,41428.0,41422.0,0.001]
[1646360592382,0.57860013,41428.0,41427.0,0.00085417]
[1646360593932,0.58260013,41428.0,41427.0,0.00085417]
[1646360594133,0.59227213,41428.0,41427.0,0.00085417]
[1646360594333,0.5811819,41428.0,41427.0,0.00085417]
[1646360594534,0.29227213,41428.0,41427.0,0.00085417]
[1646360594735,0.19227213,41428.0,41427.0,0.00085417]
[1646360595036,0.08649437,41428.0,41427.0,0.00085417]
[1646360595235,0.08249437,41428.0,41427.0,0.00085417]
[1646360596843,0.07102279,41428.0,41427.0,0.00085417]
[1646360598085,0.07702279,41428.0,41427.0,0.00085417]
[1646360599288,0.07102279,41428.0,41427.0,0.00085417]
[1646360600993,0.27332882,41428.0,41427.0,0.00085417]
[1646360601437,0.07102279,41428.0,41427.0,0.00085417]
[1646360602039,0.07602279,41428.0,41427.0,0.00085417]
[1646360602942,1.37490972,41427.0,41422.0,0.001]
[1646360603141,0.05986579,41426.0,41422.0,0.001]
[1646360603342,0.3,41425.0,41422.0,0.001]
[1646360603544,0.7836,41424.0,41422.0,0.001]
[1646360603742,0.4,41423.0,41422.0,0.001]
[1646360603942,0.4482,41423.0,41422.0,0.001]
[1646360604145,0.45208293,41423.0,41422.0,0.001]
[1646360605382,0.46355451,41423.0,41422.0,0.001]
[1646360605779,1.19895451,41423.0,41422.0,0.001]
[1646360606183,0.56933227,41423.0,41422.0,0.001]
[1646360606381,0.58248306,41423.0,41422.0,0.001]
[1646360606582,0.4767053,41423.0,41422.0,0.001]
[1646360610233,0.16135079,41423.0,41422.0,0.001]
[1646360610434,0.06135079,41423.0,41422.0,0.001]
[1646360611336,0.01315079,41423.0,41422.0,0.301]
[1646360611534,0.01315079,41423.0,41422.0,0.001]
[1646360611931,0.01315079,41428.0,41422.0,0.001]
[1646360612132,0.01915079,41428.0,41422.0,0.001]
[1646360613278,0.01315079,41428.0,41422.0,0.001]
[1646360614082,0.01315079,41428.0,41422.0,0.301]
[1646360614380,0.01315079,41428.0,41421.0,0.29572998]
[1646360615080,0.1,41431.0,41421.0,0.29572998]
[1646360616082,0.107,41431.0,41421.0,0.29572998]
[1646360616336,0.007,41431.0,41421.0,0.29572998]
[1646360617339,0.01315079,41432.0,41421.0,0.27167998]
[1646360618038,0.32015079,41432.0,41421.0,0.27167998]
[1646360618237,0.1,41431.0,41421.0,0.27167998]
[1646360619838,0.4,41432.0,41421.0,0.27167998]
[1646360620286,0.109671,41432.0,41423.0,0.060418]
[1646360620486,0.1,41432.0,41423.0,0.060418]
[1646360620687,0.0763806,41433.0,41423.0,0.060418]
[1646360620887,0.3,41432.0,41423.0,0.060418]
[1646360621288,0.18112028,41431.0,41423.0,0.060418]
[1646360621488,0.18112028,41431.0,41421.0,0.27167998]
[1646360621691,1.81695915,41427.0,41421.0,0.27167998]
[1646360621887,1.81695915,41427.0,41421.0,0.0031]
[1646360622089,0.20577776,41426.0,41421.0,0.0031]
[1646360623186,0.4,41430.0,41421.0,0.0031]
[1646360623588,0.0482,41429.0,41421.0,0.0031]
[1646360623838,0.18900747,41423.0,41421.0,0.0031]
[1646360624045,0.3,41422.0,41421.0,0.0031]
[1646360624240,0.4,41422.0,41421.0,0.0031]
[1646360624437,0.41315079,41422.0,41421.0,0.0031]
[1646360625036,0.51892855,41422.0,41421.0,0.0031]
[1646360626038,0.52392855,41422.0,41421.0,0.0031]
[1646360626844,0.57212855,41422.0,41421.0,0.0031]
[1646360627239,0.56712855,41422.0,41421.0,0.0031]
[1646360628092,0.57680155,41422.0,41421.0,0.0031]
[1646360628593,1.0161611,41422.0,41421.0,0.0031]
[1646360628792,1.3,41421.0,41420.0,0.0008013]
[1646360628992,1.3482,41421.0,41420.0,0.0008013]
[1646360629193,1.56712855,41421.0,41420.0,0.0008013]
[1646360629998,2.0161611,41421.0,41420.0,0.0008013]
[1646360630195,2.03163268,41421.0,41420.0,0.0008013]
[1646360630598,1.58260013,41421.0,41420.0,0.0008013]
[1646360631096,2.03152708,41421.0,41420.0,0.0008013]
[1646360631339,2.02752708,41421.0,41420.0,0.0008013]
[1646360632140,2.03720108,41421.0,41420.0,0.0008013]
[1646360633341,1.57860013,41421.0,41420.0,0.0008013]
[1646360634143,1.58360013,41421.0,41420.0,0.0008013]
[1646360635388,1.57860013,41421.0,41420.0,0.0008013]
[1646360635989,1.58827413,41421.0,41420.0,0.0008013]
[1646360636189,1.59127413,41421.0,41420.0,0.0008013]
[1646360636790,1.59127413,41421.0,41419.0,0.00295049]
[1646360636990,0.4,41420.0,41419.0,0.00295049]
[1646360637193,0.55397776,41420.0,41419.0,0.00295049]
[1646360637489,0.56712855,41420.0,41419.0,0.00295049]
[1646360637891,0.46135079,41420.0,41419.0,0.00295049]
[1646360638088,0.46535079,41420.0,41419.0,0.00295049]
[1646360639333,0.46135079,41420.0,41419.0,0.00295049]
[1646360639534,0.16135079,41420.0,41419.0,0.00295049]
[1646360639738,0.06135079,41420.0,41419.0,0.00295049]
[1646360640136,0.06535079,41420.0,41419.0,0.00295049]
[1646360641141,0.36535079,41420.0,41419.0,0.00295049]
[1646360641338,0.46135079,41420.0,41419.0,0.00295049]
[1646360642138,0.46635079,41420.0,41419.0,0.00295049]
[1646360642588,0.47481154,41420.0,41419.0,0.00295049]
[1646360643391,0.46981154,41420.0,41419.0,0.00295049]
[1646360644192,0.47481154,41420.0,41419.0,0.00295049]
[1646360645495,0.46981154,41420.0,41419.0,0.00295049]
[1646360647341,0.16981154,41420.0,41419.0,0.00295049]
[1646360647742,0.06981154,41420.0,41419.0,0.00295049]
[1646360648044,0.01315079,41420.0,41419.0,0.00295049]
[1646360648244,0.01815079,41420.0,41419.0,0.00295049]
[1646360648443,0.005,41420.0,41419.0,0.00295049]
[1646360649449,0.01315079,41421.0,41419.0,0.00295049]
[1646360650095,0.01815079,41421.0,41419.0,0.00295049]
[1646360651292,0.1,41429.0,41419.0,0.00295049]
[1646360651293,0.1,41429.0,41424.0,0.20910257]
[1646360651496,0.10577776,41433.0,41425.0,0.120813]
[1646360651497,0.44892695,41432.0,41425.0,0.120813]
[1646360651692,0.66300471,41434.0,41425.0,0.120813]
[1646360651891,0.12297,41434.0,41425.0,0.120813]
[1646360653292,0.12297,41434.0,41428.0,0.22421118]
[1646360653293,0.2133,41434.0,41428.0,0.22421118]
[1646360653493,0.1,41434.0,41428.0,0.22421118]
[1646360653935,0.1,41434.0,41425.0,0.120813]
[1646360654136,0.54892695,41434.0,41425.0,0.120813]
[1646360654338,0.1,41433.0,41425.0,0.120813]
[1646360655134,0.1,41433.0,41426.0,0.2379457]
[1646360656535,0.1,41433.0,41425.0,0.120813]
[1646360656936,0.1,41433.0,41424.0,0.060406]
[1646360657139,0.4,41433.0,41422.0,0.15]
[1646360657341,0.44892695,41432.0,41422.0,0.15]
[1646360657786,0.44892695,41432.0,41420.0,0.1194]
[1646360657787,0.1,41431.0,41420.0,0.1194]
[1646360657996,0.54892695,41431.0,41420.0,0.1194]
[1646360658788,0.44892695,41430.0,41420.0,0.1194]
[1646360659188,0.1,41429.0,41420.0,0.1194]
[1646360659591,0.1,41429.0,41420.0,0.1144]
[1646360660190,0.105,41429.0,41420.0,0.1144]
[1646360660890,0.55392695,41429.0,41420.0,0.1144]
[1646360661090,0.45392695,41429.0,41420.0,0.1144]
[1646360661342,0.1,41428.0,41420.0,0.1144]